bitfinex/quotes_ETHUSD_20240612
["timestamp","ask_amount","ask_price","bid_price","bid_amount"]
[1718223694539,4.0553,3549.6,3548.7,0.58942046]
[1718223694830,1.45251607,3549.5,3548.6,3.0]
[1718223695072,1.45251607,3549.5,3548.1,1.16573884]
[1718223695073,1.50688827,3549.5,3548.2,0.58942046]
[1718223695200,1.50688827,3549.5,3548.1,0.58942046]
[1718223695201,4.0553,3549.3,3548.1,0.58942046]
[1718223695405,1.45251607,3549.2,3548.1,0.58942046]
[1718223695721,1.50674618,3549.2,3548.1,0.58942046]
[1718223695919,1.45251607,3549.2,3548.0,0.58942046]
[1718223696121,0.65988358,3549.1,3548.0,1.10083145]
[1718223696323,1.45251607,3549.0,3547.9,0.86554308]
[1718223696523,4.0553,3548.9,3547.8,0.58942046]
[1718223696707,4.0553,3548.9,3547.4,1.16921792]
[1718223696708,1.45251607,3548.8,3547.7,0.58942046]
[1718223696906,0.01907093,3548.7,3547.7,0.58942046]
[1718223697136,0.01907093,3548.7,3547.1,3.40855046]
[1718223697137,1.48674412,3548.6,3547.1,3.40855046]
[1718223697441,0.01907093,3548.5,3547.2,3.63341718]
[1718223697767,0.05329136,3548.4,3547.3,0.58942046]
[1718223698059,0.05329136,3548.4,3547.3,3.58942046]
[1718223698214,0.01907093,3548.3,3547.4,3.0]
[1718223698415,0.05329136,3548.4,3547.4,3.0]
[1718223698622,0.01907093,3548.8,3547.5,0.69568803]
[1718223698828,1.45251607,3548.8,3547.5,0.69568803]
[1718223699135,0.07213585,3548.7,3547.5,0.69568803]
[1718223699735,1.43344514,3548.6,3547.3,3.58942046]
[1718223700030,1.43344514,3548.6,3547.2,0.42854639]
[1718223700031,0.01907093,3548.5,3547.2,1.01796685]
[1718223700236,0.01907093,3548.5,3547.2,0.42854639]
[1718223700237,1.45251607,3548.5,3547.2,0.42854639]
[1718223700454,1.45251607,3548.5,3547.3,0.66429022]
[1718223700606,1.45251607,3548.5,3547.3,0.60799669]
[1718223700798,0.05292275,3548.4,3547.3,0.60799669]
[1718223701941,0.07199368,3548.4,3547.3,0.60799669]
[1718223702238,0.07199368,3548.4,3547.4,0.46259635]
[1718223705170,1.43344514,3548.3,3547.3,0.60799669]
[1718223705304,4.35747093,3548.2,3547.3,0.60799669]
[1718223705645,0.05278056,3548.1,3547.3,0.60799669]
[1718223706541,1.4862257,3548.1,3547.1,3.0]
[1718223706843,0.01907093,3548.0,3546.6,5.062]
[1718223707812,0.01907093,3548.0,3546.6,5.65125809]
[1718223709403,5.75204514,3547.9,3546.7,0.04128672]
[1718223709660,4.3186,3547.9,3546.8,2.54198554]
[1718223709866,0.05245908,3547.8,3546.8,2.54198554]
[1718223710004,0.05245908,3547.8,3546.9,3.0]
[1718223710206,0.05245908,3547.8,3547.0,0.85419855]
[1718223710537,4.3186,3547.9,3547.0,0.85419855]
[1718223710930,4.3186,3547.9,3547.0,3.67344855]
[1718223711100,4.3186,3547.9,3547.1,3.0]
[1718223713248,4.3186,3547.9,3547.0,0.85419855]
[1718223713467,4.3186,3547.9,3547.1,0.63961841]
[1718223715654,4.3186,3547.9,3547.2,2.11837124]
[1718223715956,4.3186,3547.9,3547.3,0.05637124]
[1718223717375,2.2859,3548.8,3547.3,0.05637124]
[1718223717583,2.2859,3548.8,3547.5,1.691]
[1718223717584,0.01907093,3548.7,3547.5,1.691]
[1718223717743,0.07197335,3548.7,3547.6,2.57499777]
[1718223718161,0.05290242,3548.7,3547.7,7.50971]
[1718223718350,0.05290242,3548.7,3548.0,3.753]
[1718223718551,2.2859,3548.8,3548.1,3.0]
[1718223719558,2.2859,3548.8,3548.2,0.05635818]
[1718223719770,2.2859,3548.8,3548.3,0.68093582]
[1718223721352,2.2859,3548.8,3548.1,3.0]
[1718223721885,2.2859,3548.8,3548.0,1.691]
[1718223722507,2.2859,3548.8,3547.8,1.691]
[1718223724108,0.01907093,3548.7,3547.7,3.0]
[1718223724413,0.01907093,3548.7,3547.7,3.77988902]
[1718223725522,2.2723,3548.6,3547.7,3.0]
[1718223725677,2.29137093,3548.5,3547.2,7.46]
[1718223725873,2.29137093,3548.5,3546.8,9.522]
[1718223725874,2.2723,3548.3,3546.8,9.522]
[1718223726092,0.01907093,3548.2,3546.8,9.522]
[1718223726296,0.01907093,3548.2,3546.9,2.24412581]
[1718223726688,0.01907093,3548.2,3547.0,1.691]
[1718223727083,2.2723,3548.3,3547.2,4.0348]
[1718223727289,2.2723,3548.3,3547.4,1.691]
[1718223729835,2.2723,3548.3,3547.5,0.02047463]
[1718223729977,2.2723,3548.3,3547.6,2.53314746]
[1718223730178,2.2723,3548.3,3547.7,3.05636431]
[1718223730378,2.2723,3548.3,3547.8,0.05636599]
[1718223731109,2.2723,3548.3,3547.8,1.691]
[1718223733392,2.2723,3548.3,3547.8,4.50961]
[1718223733607,0.87746068,3549.9,3548.2,3.753]
[1718223733780,0.87746068,3549.9,3548.3,3.05635312]
[1718223733781,1.45251607,3549.8,3548.3,3.05635312]
[1718223734126,0.01907093,3549.7,3548.3,3.05635312]
[1718223734431,1.43344514,3549.6,3548.3,3.05635312]
[1718223734653,0.01907093,3549.5,3548.3,3.05635312]
[1718223734798,1.45251607,3549.5,3548.4,0.68093531]
[1718223735000,1.45251607,3549.5,3548.5,0.05635448]
[1718223735186,0.01907093,3549.5,3548.5,0.05635448]
[1718223735390,0.01907093,3550.2,3548.5,0.05635448]
[1718223735616,1.43344514,3550.1,3548.6,0.54282898]
[1718223735830,0.01907093,3550.0,3548.7,0.05635097]
[1718223735992,1.43344514,3549.9,3548.8,0.05635097]
[1718223736193,0.01907093,3549.8,3548.8,0.05635097]
[1718223736398,1.43344514,3549.7,3548.8,0.05635097]
[1718223736595,2.4118,3549.6,3548.8,0.92246897]
[1718223736794,2.4118,3549.6,3548.8,0.866118]
[1718223737024,0.04394736,3549.5,3548.8,3.866118]
[1718223737227,2.4118,3549.6,3548.8,3.866118]
[1718223737724,2.4118,3549.6,3548.9,0.05634701]
[1718223738032,2.4118,3549.6,3549.1,2.062]
[1718223738234,2.4118,3549.6,3549.2,0.05634495]
[1718223739706,2.4118,3549.6,3549.3,0.05634296]
[1718223739908,2.4495,3550.9,3549.3,0.05634296]
[1718223740109,2.4495,3550.7,3549.3,0.05634296]
[1718223740315,1.84271768,3550.6,3549.3,0.05634296]
[1718223740536,1.88672892,3550.6,3549.3,0.05634296]
[1718223740837,1.88672892,3550.6,3549.3,2.81745]
[1718223741039,1.88672892,3550.6,3549.5,2.062]
[1718223741185,1.88672892,3550.6,3549.6,0.05633823]
[1718223741389,0.43362289,3550.5,3549.6,0.05633823]
[1718223741626,2.2738,3550.3,3549.6,0.05633823]
[1718223741947,0.0632599,3550.2,3549.6,0.05633823]
[1718223742108,0.04418897,3550.2,3549.6,0.05633823]
[1718223742491,0.0632599,3550.2,3549.6,0.05633823]
[1718223742801,0.0632599,3550.2,3549.5,2.062]
[1718223743996,0.48367269,3550.2,3549.4,3.0]
[1718223744337,2.3744,3550.0,3549.1,3.0]
[1718223744497,0.48367269,3550.2,3549.0,3.0]
[1718223744498,2.3744,3549.8,3549.0,3.0]
[1718223744866,0.06307854,3549.7,3548.9,7.46]
[1718223746231,0.06307854,3549.7,3549.0,3.0]
[1718223746709,2.3478,3549.6,3549.0,3.0]
[1718223746905,0.30390546,3549.5,3549.0,3.0]
[1718223748033,2.3251,3549.4,3549.0,3.0]
[1718223748236,0.01907093,3549.3,3548.7,3.0]
[1718223748422,0.06250818,3549.3,3548.7,3.0]
[1718223748640,0.01907093,3549.3,3548.7,3.0]
[1718223749011,2.4651,3549.2,3548.7,3.0]
[1718223749235,1.71104195,3549.3,3548.0,1.691]
[1718223749236,2.3893,3549.0,3548.3,10.46]
[1718223749437,0.01907093,3548.9,3548.3,10.46]
[1718223749750,2.3893,3549.0,3548.3,10.46]
[1718223752250,1.45251607,3548.9,3548.3,3.0]
[1718223752449,1.69144607,3548.9,3547.8,3.0]
[1718223752657,1.45251607,3548.9,3548.2,2.062]
[1718223754157,2.3893,3549.0,3548.3,0.05636349]
[1718223754522,2.3893,3549.0,3548.6,2.062]
[1718223765547,2.3893,3549.0,3548.3,3.0]
[1718223766044,0.01907093,3548.9,3548.3,3.0]
[1718223766239,0.06213859,3548.9,3548.2,3.0]
[1718223766461,2.4844,3548.8,3548.2,3.0]
[1718223766743,0.01907093,3548.7,3548.2,3.0]
[1718223767263,2.4844,3548.8,3548.2,3.0]
[1718223767440,2.4844,3548.8,3548.3,1.21683443]
[1718223767641,0.04283779,3548.7,3548.2,3.0]
[1718223767953,2.4844,3548.8,3548.2,3.0]
[1718223769776,2.4844,3548.8,3548.4,2.062]
[1718223774771,2.4844,3548.8,3548.5,0.05635672]
[1718223775488,2.4844,3548.8,3548.4,2.062]
[1718223775776,2.4844,3548.8,3548.5,0.73422581]
[1718223776075,2.4844,3548.8,3548.4,2.062]
[1718223778385,2.4844,3548.8,3548.2,3.58925809]
[1718223778772,2.4844,3548.8,3548.2,3.0]
[1718223779171,2.4844,3548.8,3548.2,3.58925809]
[1718223781776,2.4844,3548.8,3548.2,3.0]
[1718223784496,2.4844,3548.8,3548.2,4.34945691]
[1718223784852,2.4844,3548.8,3548.2,4.938715]
[1718223785856,2.4844,3548.8,3548.3,0.05635805]
[1718223786949,2.4844,3548.8,3548.7,0.858]
[1718223790159,2.4844,3548.8,3548.7,1.44725809]
[1718223790386,2.4844,3548.8,3548.7,2.6270373]
[1718223790972,2.4844,3548.8,3548.7,2.03777921]
[1718223791901,2.343,3549.7,3548.7,5.6270373]
[1718223792070,0.01907093,3549.6,3549.5,0.858]
[1718223792270,0.27625507,3549.6,3549.5,0.858]
[1718223793662,0.27625507,3549.6,3549.3,0.858]
[1718223793899,0.295326,3549.6,3549.3,0.858]
[1718223794777,0.061026,3549.6,3549.3,0.858]
[1718223795708,2.3638,3549.5,3549.2,0.858]
[1718223795919,0.01907093,3549.4,3549.2,0.858]
[1718223796216,0.06103864,3549.4,3549.2,0.858]
[1718223796792,0.01907093,3549.4,3549.2,0.858]
[1718223798896,2.3638,3549.5,3549.2,0.858]
[1718223799098,2.3638,3549.5,3549.4,0.858]
[1718223800275,2.3638,3549.5,3549.4,1.30272581]
[1718223801195,2.2953,3550.3,3549.4,1.30272581]
[1718223801414,1.45251607,3550.2,3549.9,0.858]
[1718223801608,1.49339788,3550.2,3549.9,0.858]
[1718223803110,0.04088181,3550.2,3550.1,0.858]
[1718223803502,2.2953,3550.3,3550.1,0.858]
[1718223803700,0.04106189,3550.2,3550.1,0.858]
[1718223803902,2.2953,3550.3,3550.1,0.858]
[1718223804327,0.04106189,3550.2,3550.1,0.858]
[1718223804689,2.2953,3550.3,3550.1,0.858]
[1718223804894,0.04106189,3550.2,3550.1,0.858]
[1718223805092,2.2953,3550.3,3550.1,0.858]
[1718223805321,0.04106189,3550.2,3550.1,0.858]
[1718223805626,0.06013282,3550.2,3550.1,0.858]
[1718223805929,0.01907093,3550.2,3549.9,0.858]
[1718223807501,2.2953,3550.3,3550.1,0.858]
[1718223809752,2.3618,3551.3,3550.2,0.05633143]
[1718223809908,2.38087093,3551.3,3551.2,0.858]
[1718223810107,2.3618,3551.3,3551.2,0.858]
[1718223810449,2.3618,3551.3,3550.4,7.46]
[1718223810653,0.01907093,3551.2,3551.0,0.858]
[1718223812906,0.01907093,3551.2,3550.3,3.0]
[1718223813419,2.2744,3552.0,3550.2,5.056]
[1718223813618,2.2744,3551.8,3550.2,5.056]
[1718223813826,2.4706,3551.6,3550.2,5.056]
[1718223814023,0.87746068,3552.0,3550.2,5.056]
[1718223814024,2.4706,3551.4,3550.3,1.2516]
[1718223814234,2.4706,3551.2,3550.3,3.0]
[1718223814453,2.3832,3551.0,3550.3,3.0]
[1718223814623,2.3832,3550.8,3550.2,3.0]
[1718223814961,2.3832,3550.6,3550.1,7.46]
[1718223815257,0.01907093,3550.5,3550.1,7.46]
[1718223815422,0.06084613,3550.5,3549.8,2.056]
[1718223815612,2.3832,3550.6,3549.9,1.30793595]
[1718223815811,2.3832,3550.6,3549.9,4.2516]
[1718223817551,2.3832,3550.6,3550.0,0.01631612]
[1718223817948,2.3832,3550.6,3550.0,0.02410084]
[1718223818960,0.01907093,3550.5,3549.9,4.2516]
[1718223819130,2.4147,3550.4,3549.9,3.0]
[1718223819319,0.01907093,3550.3,3549.7,3.0]
[1718223821951,2.258,3550.2,3549.7,3.0]
[1718223822155,0.01907093,3550.1,3549.7,3.0]
[1718223826212,0.01907093,3550.1,3549.6,0.27834906]
[1718223826418,0.01907093,3550.1,3549.3,5.056]
[1718223826622,0.01907093,3550.1,3549.4,1.2516]
[1718223826862,0.01907093,3550.1,3549.4,4.2516]
[1718223828662,0.01907093,3550.1,3549.7,2.056]
[1718223831841,2.258,3550.2,3549.7,2.056]
[1718223834441,2.258,3550.2,3549.8,0.03275906]
[1718223834641,2.258,3550.2,3549.9,0.20887591]
[1718223835086,2.258,3550.2,3550.1,0.857]
[1718223836593,2.4779,3550.5,3550.1,0.857]
[1718223836762,2.4779,3550.5,3550.4,0.857]
[1718223853124,2.4779,3550.5,3550.1,0.58925809]
[1718223853422,2.4779,3550.5,3550.3,0.857]
[1718223860808,2.4779,3550.5,3550.4,0.857]
[1718223862655,3.78764514,3551.2,3550.1,3.64558854]
[1718223862816,0.01907093,3551.1,3550.7,0.857]
[1718223863007,2.3542,3550.9,3550.2,0.58925809]
[1718223863220,0.01907093,3550.8,3550.7,0.857]
[1718223863742,0.01907093,3550.8,3550.2,0.58925809]
[1718223863743,0.05838892,3550.8,3550.2,0.58925809]
[1718223863946,0.05838892,3550.8,3550.5,0.857]
[1718223864833,0.03931799,3550.8,3550.5,0.857]
[1718223865038,0.03931799,3550.8,3550.7,0.857]
[1718223867252,2.3542,3550.9,3550.7,0.857]
[1718223867679,0.03666227,3550.8,3550.7,0.857]
[1718223868321,2.3542,3550.9,3550.7,0.857]
[1718223868628,2.3542,3550.9,3550.2,0.58925809]
[1718223868629,0.05576433,3550.8,3550.2,0.58925809]
[1718223868824,0.05576433,3550.8,3550.6,0.857]
[1718223869042,0.01907093,3550.8,3550.6,0.857]
[1718223869262,0.03664607,3550.7,3550.6,0.857]
[1718223869564,0.01907093,3550.8,3550.6,0.857]
[1718223869723,0.03664607,3550.7,3550.6,0.857]
[1718223869923,0.01907093,3550.8,3550.6,0.857]
[1718223870128,0.03664607,3550.7,3550.6,0.857]
[1718223870360,0.01907093,3550.8,3550.6,0.857]
[1718223870668,0.03664607,3550.7,3550.6,0.857]
[1718223871044,0.01907093,3550.8,3550.6,0.857]
[1718223871342,0.03664607,3550.7,3550.6,0.857]
[1718223871556,0.01907093,3550.8,3550.6,0.857]
[1718223871872,0.03664607,3550.7,3550.6,0.857]
[1718223872231,0.01907093,3550.8,3550.6,0.857]
[1718223872628,0.03664607,3550.7,3550.6,0.857]
[1718223873047,0.01907093,3550.8,3550.6,0.857]
[1718223873252,2.3542,3550.9,3550.6,0.857]
[1718223873732,0.0366934,3550.8,3550.6,0.857]
[1718223874528,0.0366934,3550.8,3550.2,0.58925809]
[1718223874728,2.3542,3550.9,3550.6,0.857]
[1718223874978,0.0366934,3550.8,3550.6,0.857]
[1718223878880,2.3031,3550.6,3550.3,0.58925809]
[1718223879087,0.43819818,3550.8,3550.1,0.58925809]
[1718223879088,2.3031,3550.4,3550.1,0.58925809]
[1718223879288,2.3031,3550.1,3549.7,0.88655412]
[1718223879460,0.857,3549.8,3549.3,0.59113061]
[1718223879657,1.82807768,3550.0,3549.2,0.59113061]
[1718223879658,2.3031,3549.6,3549.2,0.59113061]
[1718223879987,1.48849707,3549.5,3549.2,0.59113061]
[1718223880218,1.48849707,3549.5,3549.1,0.857]
[1718223880560,2.3031,3549.4,3548.9,0.857]
[1718223880762,0.05457636,3549.3,3548.9,0.857]
[1718223881686,2.3902,3549.2,3548.9,0.857]
[1718223881864,0.01907093,3549.1,3548.5,3.59113061]
[1718223882085,0.05448162,3549.1,3548.8,0.857]
[1718223882251,0.01907093,3549.1,3548.8,0.857]
[1718223882450,0.03536331,3549.0,3548.8,0.857]
[1718223882652,0.01907093,3549.1,3548.8,0.857]
[1718223882852,0.01907093,3549.1,3548.5,3.0]
[1718223883089,2.2746,3549.0,3548.5,3.0]
[1718223883294,0.01907093,3548.9,3548.5,3.0]
[1718223883586,0.01907093,3548.9,3548.6,0.857]
[1718223883885,0.03526855,3548.8,3548.6,0.857]
[1718223884457,0.03526855,3548.8,3548.4,7.46]
[1718223884665,2.3181,3548.7,3548.4,7.46]
[1718223884957,0.01907093,3548.6,3548.4,0.857]
[1718223888298,0.01907093,3548.6,3547.9,3.0]
[1718223888466,0.01907093,3548.6,3548.3,0.857]
[1718223889711,0.01907093,3548.6,3547.8,19.79]
[1718223889712,1.43344514,3548.5,3547.8,19.79]
[1718223890006,2.53292254,3548.4,3548.0,0.857]
[1718223890301,3.96636768,3548.4,3547.4,7.46]
[1718223890506,0.03394063,3548.3,3548.0,0.857]
[1718223890799,0.03389323,3548.2,3548.0,0.857]
[1718223891177,3.94729675,3548.4,3548.0,0.857]
[1718223891407,0.03379853,3548.3,3548.0,0.857]
[1718223891701,0.05286946,3548.3,3547.1,3.0]
[1718223891870,0.05286946,3548.3,3548.1,0.857]
[1718223892198,0.03375113,3548.2,3548.1,0.857]
[1718223892604,0.01907093,3548.3,3548.1,0.857]
[1718223892767,0.03375113,3548.2,3548.1,0.857]
[1718223892963,0.01907093,3548.3,3548.1,0.857]
[1718223893166,0.03375113,3548.2,3548.1,0.857]
[1718223893366,0.01907093,3548.3,3548.1,0.857]
[1718223893600,0.03375113,3548.2,3548.1,0.857]
[1718223894096,0.01907093,3548.3,3548.1,0.857]
[1718223894305,0.03375113,3548.2,3548.1,0.857]
[1718223894664,2.3686,3548.4,3548.1,0.857]
[1718223894868,0.03366796,3548.2,3547.4,0.2819]
[1718223895081,2.3686,3548.4,3548.1,0.857]
[1718223895277,2.3686,3548.4,3548.3,0.857]
[1718223900306,3.0,3549.8,3548.3,0.857]
[1718223900307,2.3337,3549.3,3548.3,0.857]
[1718223900506,2.2931,3549.1,3548.6,0.857]
[1718223900710,1.45251607,3549.0,3548.6,0.857]
[1718223900877,0.37456161,3548.9,3548.6,0.857]
[1718223901079,0.01907093,3548.8,3548.6,0.857]
[1718223903926,2.2931,3549.1,3548.6,0.857]
[1718223904076,2.2931,3549.1,3547.9,1.9729]
[1718223904077,2.2931,3549.1,3549.0,0.857]
[1718223904599,2.32631664,3549.1,3549.0,0.857]
[1718223905422,0.03321664,3549.1,3549.0,0.857]
[1718223905827,0.01907093,3549.3,3549.0,0.857]
[1718223905979,0.01907093,3549.3,3549.2,0.857]
[1718223906476,0.03368555,3549.3,3549.2,0.857]
[1718223907214,0.28927504,3549.3,3548.4,3.0]
[1718223907388,0.28927504,3549.3,3549.0,0.857]
[1718223908814,0.28927504,3549.3,3548.2,3.0]
[1718223908815,1.43344514,3549.2,3548.2,3.0]
[1718223909019,2.74529295,3549.1,3548.6,0.857]
[1718223909191,2.3208,3548.9,3548.6,0.857]
[1718223909514,0.05253346,3548.8,3548.6,0.857]
[1718223909893,0.05253346,3548.8,3548.0,3.27852809]
[1718223910090,0.05253346,3548.8,3548.6,0.857]
[1718223910307,2.3887,3548.6,3548.0,3.0]
[1718223910508,0.01907093,3548.5,3547.9,7.46]
[1718223910711,0.05239129,3548.5,3547.5,9.151]
[1718223910916,0.05239129,3548.5,3547.5,7.46]
[1718223911084,0.01907093,3548.5,3547.5,7.46]
[1718223911428,2.4261,3548.3,3547.9,0.857]
[1718223911631,2.4261,3548.3,3547.2,2.737]
[1718223911632,1.71229002,3548.4,3546.7,0.05953889]
[1718223911633,2.2898,3547.6,3546.7,0.05953889]
[1718223911784,2.2898,3546.7,3545.5,0.58837741]
[1718223911985,0.05111925,3546.6,3544.6,0.58837741]
[1718223912184,0.05111925,3546.6,3544.4,0.58837741]
[1718223912389,0.03204832,3546.6,3544.9,2.82092]
[1718223912612,0.03204832,3546.6,3545.1,2.82073]
[1718223912818,0.03204832,3546.6,3545.2,0.05639571]
[1718223913002,0.01907093,3546.6,3545.2,0.91292867]
[1718223913824,0.01907093,3546.6,3545.5,2.061]
[1718223914021,1.43344514,3546.5,3545.5,2.061]
[1718223914219,0.01907093,3546.4,3545.5,2.2671]
[1718223914384,0.05041918,3546.4,3545.5,2.2671]
[1718223914586,1.43344514,3546.3,3545.0,0.282092]
[1718223914794,1.43344514,3546.3,3544.1,4.286623]
[1718223914795,2.35822427,3546.2,3544.8,2.061]
[1718223915088,1.43344514,3546.1,3544.8,2.061]
[1718223915284,0.01907093,3546.0,3544.8,2.061]
[1718223915489,1.48380868,3546.0,3544.8,2.061]
[1718223917341,1.43344514,3545.9,3544.4,2.061]
[1718223917628,2.3074,3545.7,3544.5,0.56208117]
[1718223917840,1.45251607,3545.6,3544.5,0.56208117]
[1718223918058,1.45251607,3545.6,3544.3,0.27791167]
[1718223918334,1.45251607,3545.6,3544.2,3.0]
[1718223918522,1.45251607,3545.6,3544.1,5.061]
[1718223918726,1.45251607,3545.6,3544.1,5.33646358]
[1718223919494,1.45251607,3545.6,3544.5,2.061]
[1718223919694,1.45251607,3545.6,3544.6,0.2061]
[1718223919937,1.45251607,3545.6,3544.2,2.061]
[1718223920094,1.45251607,3545.6,3544.3,3.0]
[1718223920726,1.45251607,3545.6,3544.2,2.061]
[1718223921301,1.45251607,3545.6,3544.1,3.0]
[1718223922354,1.45251607,3545.6,3544.2,2.061]
[1718223922519,0.37599161,3545.5,3544.2,2.061]
[1718223922844,1.45251607,3545.4,3544.2,2.061]
[1718223923042,2.3778,3545.3,3543.7,7.46]
[1718223923215,1.45251607,3545.2,3543.7,7.46]
[1718223923416,0.41276974,3545.1,3543.7,7.46]
[1718223923657,1.45251607,3545.0,3543.4,9.521]
[1718223923863,2.4687,3544.9,3543.4,9.521]
[1718223924028,1.45251607,3544.8,3543.4,9.521]
[1718223924355,0.01907093,3544.7,3543.5,3.0]
[1718223924558,1.84463768,3544.7,3543.6,1.2521]
[1718223925036,1.46295828,3544.6,3543.5,3.0]
[1718223925262,0.01907093,3544.5,3543.5,3.0]
[1718223925575,0.01907093,3544.5,3543.5,5.061]
[1718223925715,0.01907093,3544.5,3543.6,0.05643517]
[1718223926113,0.01907093,3544.8,3543.5,5.061]
[1718223926419,0.01907093,3544.8,3543.9,2.061]
[1718223926623,0.01907093,3544.8,3544.0,0.01619798]
[1718223926859,0.01907093,3544.8,3544.0,0.02907435]
[1718223927019,0.01907093,3544.8,3543.9,2.061]
[1718223927223,0.01907093,3544.8,3544.0,0.05642574]
[1718223927559,0.01907093,3544.8,3544.1,0.21174257]
[1718223933564,2.4687,3544.9,3544.1,0.26816815]
[1718223934570,0.01907093,3544.8,3544.1,0.21174257]
[1718223935894,0.01907093,3544.8,3544.1,0.24781289]
[1718223936169,0.01907093,3544.8,3544.1,0.21174257]
[1718223937544,0.01907093,3544.8,3544.1,0.26816735]
[1718223938342,2.4687,3544.9,3544.1,0.26816735]
[1718223939188,2.4687,3544.9,3544.3,2.061]
[1718223939373,2.4687,3544.9,3544.4,0.28933489]
[1718223939680,2.4687,3544.9,3544.4,3.28933489]
[1718223942108,0.48756118,3546.2,3544.7,2.061]
[1718223942109,2.3215,3545.9,3544.7,2.061]
[1718223942405,1.45251607,3545.8,3544.8,0.0564143]
[1718223942546,0.01907093,3545.7,3544.8,0.0564143]
[1718223942747,0.02812628,3545.6,3544.8,0.0564143]
[1718223942981,0.01907093,3545.5,3544.8,0.0564143]
[1718223943280,0.02803134,3545.4,3544.8,0.0564143]
[1718223944062,0.02803134,3545.4,3544.7,2.061]
[1718223944273,0.02803134,3545.4,3544.8,0.2061]
[1718223944465,1.43344514,3545.7,3544.8,0.2061]
[1718223944669,0.02798387,3545.3,3544.8,0.2061]
[1718223944892,1.43344514,3545.7,3544.8,0.2061]
[1718223945097,0.02793639,3545.2,3544.8,0.2625143]
[1718223945255,0.01907093,3545.6,3544.9,0.23235143]
[1718223945455,0.01907093,3545.6,3544.8,3.2625143]
[1718223945675,0.02807881,3545.5,3544.8,0.2625143]
[1718223947172,0.01907093,3545.8,3544.8,0.2625143]
[1718223947355,0.02731784,3545.7,3544.8,0.2625143]
[1718223947694,0.01907093,3545.8,3544.8,0.2625143]
[1718223947878,0.01907093,3545.8,3544.9,0.81447043]
[1718223948189,0.01907093,3545.8,3545.0,0.0564105]
[1718223948190,0.02738044,3545.7,3545.0,0.0564105]
[1718223948355,0.01907093,3545.8,3545.0,0.0564105]
[1718223948687,0.02738044,3545.7,3545.0,0.0564105]
[1718223949108,2.3215,3545.9,3545.0,0.0564105]
[1718223949427,0.02742791,3545.8,3545.1,2.46869809]
[1718223949690,2.3215,3545.9,3545.1,2.46869809]
[1718223949997,2.3215,3545.9,3545.1,5.46869809]
[1718223950594,2.3215,3545.9,3545.1,2.46869809]
[1718223951094,2.3215,3545.9,3545.1,5.28947809]
[1718223951259,2.3215,3545.9,3545.2,3.0]
[1718223951260,0.01907093,3545.8,3545.2,3.0]
[1718223951606,2.4007,3545.7,3545.0,3.0]
[1718223951810,0.01907093,3545.6,3544.6,3.752]
[1718223952008,0.01907093,3545.6,3544.7,4.4212]
[1718223952179,0.01907093,3545.6,3544.7,3.0]
[1718223952377,0.01907093,3545.6,3544.6,1.691]
[1718223953001,0.02750104,3545.5,3544.6,1.691]
[1718223953871,0.01907093,3545.6,3544.6,1.691]
[1718223954517,0.40439254,3545.6,3544.6,1.691]
[1718223955018,0.02750104,3545.5,3544.6,1.691]
[1718223955205,0.01907093,3545.4,3544.6,1.691]
[1718223956414,0.38532161,3545.6,3544.6,1.691]
[1718223957290,0.01907093,3545.5,3544.6,1.691]
[1718223957876,0.01907093,3545.5,3544.6,3.42298843]
[1718223958212,0.01907093,3545.5,3544.7,3.0]
[1718223958377,0.01907093,3545.6,3544.7,3.0]
[1718223959519,0.01907093,3545.6,3544.8,2.061]
[1718223960088,2.4007,3545.7,3544.9,0.05641406]
[1718223960317,2.4007,3545.7,3545.0,0.70903141]
[1718223960610,2.4007,3545.7,3545.1,0.05640752]
[1718223960803,2.4007,3545.7,3545.2,2.061]
[1718223961821,2.3003,3546.9,3545.2,2.061]
[1718223961988,2.3164,3546.7,3545.2,2.061]
[1718223962190,2.3164,3546.5,3545.2,2.061]
[1718223962425,2.3164,3546.3,3545.2,2.061]
[1718223962584,0.04660521,3546.2,3545.2,2.061]
[1718223964235,0.04660521,3546.2,3545.3,0.03599792]
[1718223964907,0.04660521,3546.2,3545.2,2.061]
[1718223965126,0.42625025,3546.2,3545.2,2.061]
[1718223965925,0.42625025,3546.2,3545.3,0.02799768]
[1718223966112,0.42625025,3546.2,3545.2,2.061]
[1718223966311,0.04660521,3546.2,3545.2,2.061]
[1718223971126,2.4654,3546.0,3544.9,3.0]
[1718223971329,2.4654,3545.8,3544.3,2.061]
[1718223971626,2.4654,3545.6,3545.2,0.1]
[1718223971831,2.2559,3545.4,3545.2,0.1]
[1718223971990,0.01907093,3545.3,3545.2,0.1]
[1718223972197,0.02628855,3545.3,3545.2,0.1]
[1718223973227,0.02628855,3545.3,3545.2,0.15640767]
[1718223973392,0.02616241,3545.3,3545.2,0.32174077]
[1718223973928,2.3181,3545.9,3545.2,0.32174077]
[1718223974842,2.3181,3545.9,3545.5,2.061]
[1718223977634,2.3181,3545.9,3545.4,3.0]
[1718223977933,2.3181,3545.9,3545.2,3.91212182]
[1718223978137,2.3181,3545.9,3545.2,3.32174077]
[1718223978322,2.3181,3545.9,3545.2,0.32174077]
[1718223980510,2.3181,3545.9,3545.3,0.05640553]
[1718223980740,2.3181,3545.9,3545.3,0.82845827]
[1718223983432,2.3181,3545.9,3545.3,0.05640553]
[1718223983937,0.02549523,3545.8,3545.3,0.05640553]
[1718223984110,0.02549523,3545.8,3545.5,2.061]
[1718223984301,2.3181,3545.9,3545.5,2.061]
[1718223984907,2.3181,3545.9,3545.5,2.65138105]
[1718223985418,2.3181,3545.9,3545.5,2.061]
[1718223986140,2.3181,3545.9,3545.5,2.65138105]
[1718223986845,2.3181,3545.9,3545.5,3.33725039]
[1718223987403,2.3181,3545.9,3545.6,0.02775749]
[1718223987919,2.3181,3545.9,3545.6,0.02783876]